fUST/lending_fUST_20250910
["ID","MTS","AMOUNT","RATE_DAILY","PERIOD"]
[384514662,1757448642568,-500.0,0.00013964,2]
[384514663,1757448642577,-500.0,0.00013964,2]
[384514664,1757448642587,-151.0,0.00013964,2]
[384514665,1757448642596,-151.0,0.00013964,2]
[384514666,1757448642605,-151.0,0.00013964,2]
[384514667,1757448642614,-151.0,0.00013964,2]
[384514668,1757448642624,-151.0,0.00013964,2]
[384514669,1757448642633,-151.0,0.00013964,2]
[384514670,1757448642643,-151.0,0.00013964,2]
[384514671,1757448642653,-151.0,0.00013964,2]
[384514672,1757448642662,-151.0,0.00013964,2]
[384514673,1757448642674,-151.0,0.00013964,2]
[384514675,1757448642684,-151.0,0.00013964,2]
[384514677,1757448642694,-151.0,0.00013964,2]
[384514679,1757448642703,-151.0,0.00013964,2]
[384514681,1757448642712,-151.0,0.00013964,2]
[384514683,1757448642722,-151.0,0.00013964,2]
[384514684,1757448642732,-152.512362,0.00013964,2]
[384514685,1757448642741,-154.649295,0.00013964,2]
[384514686,1757448642751,-151.0,0.00013964,2]
[384514687,1757448642760,-151.0,0.00013964,2]
[384514688,1757448642769,-151.0,0.00013964,2]
[384514689,1757448642778,-151.0,0.00013964,2]
[384514690,1757448642788,-151.0,0.00013964,2]
[384514691,1757448642797,-151.0,0.00013964,2]
[384514692,1757448642806,-151.0,0.00013964,2]
[384514693,1757448642815,-151.0,0.00013964,2]
[384514694,1757448642824,-151.0,0.00013964,2]
[384514695,1757448642834,-151.0,0.00013964,2]
[384514696,1757448642843,-151.0,0.00013964,2]
[384514697,1757448642853,-151.0,0.00013964,2]
[384514698,1757448642862,-151.0,0.00013964,2]
[384514699,1757448642871,-151.0,0.00013964,2]
[384514700,1757448642880,-151.0,0.00013964,2]
[384514701,1757448642890,-335.244813,0.00013964,2]
[384514702,1757448642899,-335.244813,0.00013964,2]
[384514703,1757448642909,-335.244813,0.00013964,2]
[384514704,1757448642919,-335.244813,0.00013964,2]
[384514705,1757448642928,-151.0,0.00013964,2]
[384514706,1757448642937,-151.0,0.00013964,2]
[384514707,1757448642947,-151.0,0.00013964,2]
[384514708,1757448642956,-151.0,0.00013964,2]
[384514709,1757448642965,-268.532896,0.00013964,2]
[384514710,1757448642975,-151.0,0.00013964,2]
[384514711,1757448642985,-151.0,0.00013964,2]
[384514712,1757448642994,-151.0,0.00013964,2]
[384514713,1757448643004,-401.392518,0.00013964,2]
[384514714,1757448643013,-151.0,0.00013964,2]
[384514715,1757448643022,-401.392518,0.00013964,2]
[384514716,1757448643031,-401.392518,0.00013964,2]
[384514717,1757448643041,-401.392518,0.00013964,2]
[384514718,1757448643050,-151.0,0.00013964,2]
[384514719,1757448643059,-151.0,0.00013964,2]
[384514720,1757448643069,-151.0,0.00013964,2]
[384514721,1757448643078,-151.0,0.00013964,2]
[384514722,1757448643088,-151.0,0.00013964,2]
[384514723,1757448643098,-321.108079,0.00013964,2]
[384514724,1757448643107,-2434.74389024,0.00013965,2]
[384514725,1757448643117,-151.0,0.00013965,2]
[384514726,1757448643126,-165.136645,0.00013965,2]
[384514727,1757448643135,-151.0,0.00013965,2]
[384514728,1757448643144,-151.0,0.00013965,2]
[384514729,1757448643154,-151.0,0.00013965,2]
[384514730,1757448643163,-151.0,0.00013965,2]
[384514731,1757448643172,-151.0,0.00013965,2]
[384514732,1757448643182,-151.0,0.00013965,2]
[384514733,1757448643191,-300.0,0.00013971,2]
[384514734,1757448643200,-300.0,0.00013971,2]
[384514735,1757448643210,-300.0,0.00013971,2]
[384514736,1757448643220,-300.0,0.00013971,2]
[384514737,1757448643229,-300.0,0.00013971,2]
[384514738,1757448643238,-300.0,0.00013971,2]
[384514739,1757448643247,-300.0,0.00013971,2]
[384514740,1757448643257,-300.0,0.00013971,2]
[384514741,1757448643266,-300.0,0.00013971,2]
[384514742,1757448643275,-300.0,0.00013971,2]
[384514744,1757448643285,-300.0,0.00013971,2]
[384514746,1757448643294,-300.0,0.00013971,2]
[384514748,1757448643303,-300.0,0.00013971,2]
[384514750,1757448643314,-300.0,0.00013971,2]
[384514752,1757448643323,-300.0,0.00013971,2]
[384514754,1757448643332,-600.0,0.00013971,2]
[384514756,1757448643341,-5959.5065181,0.00013972,2]
[384514758,1757448643351,-480.0,0.00013972,2]
[384514760,1757448643360,-480.0,0.00013972,2]
[384514762,1757448643369,-436.03717741,0.00013972,2]
[384514764,1757448643378,-480.0,0.00013972,2]
[384514766,1757448643387,-480.0,0.00013972,2]
[384514768,1757448643396,-480.0,0.00013972,2]
[384514770,1757448643406,-480.0,0.00013972,2]
[384514772,1757448643416,-480.0,0.00013972,2]
[384514774,1757448643425,-589.73,0.00013972,2]
[384514776,1757448643434,-560.34,0.00013972,2]
[384514778,1757448643444,-480.0,0.00013972,2]
[384514780,1757448643453,-480.0,0.00013972,2]
[384514782,1757448643462,-480.0,0.00013972,2]
[384514784,1757448643471,-480.0,0.00013972,2]
[384514786,1757448643481,-490.87,0.00013972,2]
[384514788,1757448643490,-480.0,0.00013972,2]
[384514790,1757448643499,-52000.1884305,0.00013972,2]
[384514792,1757448643508,-151.0,0.00013972,2]
[384514794,1757448643517,-480.0,0.00013972,2]
[384514796,1757448643526,-480.0,0.00013972,2]
[384514798,1757448643535,-638.57,0.00013972,2]
[384514800,1757448643544,-676.04,0.00013972,2]
[384514802,1757448643553,-181.02,0.00013972,2]
[384514804,1757448643563,-151.0,0.00013972,2]
[384514806,1757448643572,-198.695499,0.00013972,2]
[384514808,1757448643582,-480.0,0.00013972,2]
[384514810,1757448643591,-151.0,0.00013972,2]
[384514812,1757448643600,-151.0,0.00013972,2]
[384514814,1757448643609,-151.0,0.00013972,2]
[384514816,1757448643618,-151.0,0.00013972,2]
[384514818,1757448643628,-151.0,0.00013972,2]
[384514820,1757448643637,-480.0,0.00013972,2]
[384514822,1757448643647,-153.631,0.00013972,2]
[384514824,1757448643657,-185.501479,0.00013972,2]
[384514825,1757448643670,-746.4,0.00013972,2]
[384514828,1757448643679,-620.39,0.00013972,2]
[384514830,1757448643689,-613.34,0.00013972,2]
[384514832,1757448643698,-151.0,0.00013972,2]
[384514834,1757448643707,-151.0,0.00013972,2]
[384514836,1757448643716,-202.179945,0.00013972,2]
[384514838,1757448643726,-480.0,0.00013972,2]
[384514840,1757448643734,-1000.0,0.00013972,2]
[384514842,1757448643744,-828.76,0.00013972,2]
[384514843,1757448643753,-480.0,0.00013972,2]
[384514846,1757448643763,-480.0,0.00013972,2]
[384514848,1757448643773,-151.0,0.00013972,2]
[384514850,1757448643782,-151.0,0.00013972,2]
[384514852,1757448643791,-151.0,0.00013972,2]
[384514854,1757448643801,-152.185162,0.00013972,2]
[384514856,1757448643811,-480.0,0.00013972,2]
[384514858,1757448643821,-151.0,0.00013972,2]
[384514860,1757448643830,-480.0,0.00013972,2]
[384514862,1757448643839,-480.0,0.00013972,2]
[384514864,1757448643848,-151.0,0.00013972,2]
[384514866,1757448643858,-480.0,0.00013972,2]
[384514868,1757448643868,-151.0,0.00013972,2]
[384514870,1757448643877,-152.6708,0.00013972,2]
[384514871,1757448643887,-954.71,0.00013972,2]
[384514874,1757448643897,-151.0,0.00013972,2]
[384514875,1757448643906,-480.0,0.00013972,2]
[384514877,1757448643915,-151.0,0.00013972,2]
[384514879,1757448643924,-151.0,0.00013972,2]
[384514881,1757448643933,-151.0,0.00013972,2]
[384514884,1757448643943,-255.360096,0.00013972,2]
[384514886,1757448643952,-480.0,0.00013972,2]
[384514888,1757448643962,-151.0,0.00013972,2]
[384514890,1757448643971,-151.0,0.00013972,2]
[384514892,1757448643981,-480.0,0.00013972,2]
[384514894,1757448643990,-151.0,0.00013972,2]
[384514896,1757448643999,-151.0,0.00013972,2]
[384514898,1757448644009,-576.55,0.00013972,2]
[384514900,1757448644018,-480.0,0.00013972,2]
[384514902,1757448644029,-480.0,0.00013972,2]
[384514904,1757448644039,-155.761792,0.00013972,2]
[384514906,1757448644048,-510.33,0.00013972,2]
[384514908,1757448644058,-151.0,0.00013972,2]
[384514909,1757448644067,-2503.08,0.00013972,2]
[384514911,1757448644077,-480.0,0.00013972,2]
[384514913,1757448644086,-151.0,0.00013972,2]
[384514915,1757448644095,-480.0,0.00013972,2]
[384514918,1757448644109,-518.77,0.00013972,2]
[384514920,1757448644118,-516.69,0.00013972,2]
[384514922,1757448644128,-480.0,0.00013972,2]
[384514924,1757448644136,-480.0,0.00013972,2]
[384514926,1757448644146,-151.0,0.00013972,2]
[384514928,1757448644155,-22357.95,0.00013972,2]
[384514930,1757448644165,-480.0,0.00013972,2]
[384514932,1757448644174,-480.0,0.00013972,2]
[384514934,1757448644183,-480.0,0.00013972,2]
[384514935,1757448644192,-1152.01,0.00013972,2]
[384514936,1757448644201,-557.21,0.00013972,2]
[384514938,1757448644210,-151.0,0.00013972,2]
[384514940,1757448644219,-151.0,0.00013972,2]
[384514942,1757448644228,-480.0,0.00013972,2]
[384514944,1757448644237,-1573.14,0.00013972,2]
[384514946,1757448644247,-151.0,0.00013972,2]
[384514948,1757448644256,-151.0,0.00013972,2]
[384514950,1757448644265,-151.0,0.00013972,2]
[384514952,1757448644274,-155.144401,0.00013972,2]
[384514954,1757448644283,-480.0,0.00013972,2]
[384514956,1757448644293,-480.0,0.00013972,2]
[384514958,1757448644302,-480.0,0.00013972,2]
[384514960,1757448644311,-985.1,0.00013972,2]
[384514962,1757448644320,-480.0,0.00013972,2]
[384514964,1757448644329,-480.0,0.00013972,2]
[384514966,1757448644339,-480.0,0.00013972,2]
[384514968,1757448644348,-480.0,0.00013972,2]
[384514970,1757448644357,-480.0,0.00013972,2]
[384514972,1757448644367,-480.0,0.00013972,2]
[384514974,1757448644376,-660.09,0.00013972,2]
[384514976,1757448644385,-480.0,0.00013972,2]
[384514978,1757448644396,-3876.29,0.00013972,2]
[384514980,1757448644405,-480.0,0.00013972,2]
[384514982,1757448644414,-151.0,0.00013972,2]
[384514984,1757448644423,-151.0,0.00013972,2]
[384514986,1757448644433,-504.02369437,0.00013972,2]
[384514988,1757448644443,-480.0,0.00013972,2]
[384514990,1757448644453,-480.0,0.00013972,2]
[384514992,1757448644462,-480.0,0.00013972,2]
[384514995,1757448644472,-480.0,0.00013972,2]
[384514997,1757448644481,-3041.54,0.00013972,2]
[384514998,1757448644491,-1841.66,0.00013972,2]
[384515000,1757448644500,-480.0,0.00013972,2]
[384515002,1757448644510,-151.0,0.00013972,2]
[384515017,1757448644519,-151.0,0.00013972,2]
[384515020,1757448644657,-480.0,0.00013972,2]
[384515022,1757448644672,-151.0,0.00013972,2]
[384515024,1757448644681,-151.0,0.00013972,2]
[384515026,1757448644691,-151.0,0.00013972,2]
[384515028,1757448644701,-220.263352,0.00013972,2]
[384515030,1757448644711,-480.0,0.00013972,2]
[384515032,1757448644720,-480.0,0.00013972,2]
[384515034,1757448644730,-151.0,0.00013972,2]
[384515036,1757448644739,-480.0,0.00013972,2]
[384515039,1757448644749,-151.0,0.00013972,2]
[384515041,1757448644758,-151.0,0.00013972,2]
[384515042,1757448644768,-1077.09,0.00013972,2]
[384515045,1757448644777,-2598.11,0.00013972,2]
[384515046,1757448644787,-972.26,0.00013972,2]
[384515048,1757448644796,-151.0,0.00013972,2]
[384515050,1757448644806,-151.0,0.00013972,2]
[384515053,1757448644816,-151.0,0.00013972,2]
[384515055,1757448644825,-151.0,0.00013972,2]
[384515057,1757448644835,-151.0,0.00013972,2]
[384515059,1757448644844,-151.0,0.00013972,2]
[384515061,1757448644854,-732.93,0.00013972,2]
[384515063,1757448644865,-480.0,0.00013972,2]
[384515065,1757448644876,-480.0,0.00013972,2]
[384515067,1757448644885,-765.84,0.00013972,2]
[384515069,1757448644895,-931.58,0.00013972,2]
[384515071,1757448644904,-1009.24,0.00013972,2]
[384515073,1757448644913,-480.0,0.00013972,2]
[384515075,1757448644923,-480.0,0.00013972,2]
[384515077,1757448644932,-485.88,0.00013972,2]
[384515078,1757448644941,-761.17,0.00013972,2]
[384515080,1757448644950,-335.244813,0.00013972,2]
[384515082,1757448644960,-1432.45,0.00013972,2]
[384515085,1757448644969,-335.244813,0.00013972,2]
[384515086,1757448644979,-335.244813,0.00013972,2]
[384515088,1757448644989,-335.244813,0.00013972,2]
[384515090,1757448644998,-335.244813,0.00013972,2]
[384515092,1757448645008,-480.0,0.00013972,2]
[384515095,1757448645017,-335.244813,0.00013972,2]
[384515097,1757448645027,-480.0,0.00013972,2]
[384515099,1757448645036,-480.0,0.00013972,2]
[384515101,1757448645046,-1808.68,0.00013972,2]
[384515103,1757448645056,-335.244813,0.00013972,2]
[384515104,1757448645065,-335.244813,0.00013972,2]
[384515105,1757448645074,-9732.68,0.00013972,2]
[384515106,1757448645083,-151.0,0.00013972,2]
[384515107,1757448645092,-151.0,0.00013972,2]
[384515108,1757448645102,-2826.09,0.00013972,2]
[384515109,1757448645111,-151.0,0.00013972,2]
[384515110,1757448645120,-480.0,0.00013972,2]
[384515111,1757448645130,-480.0,0.00013972,2]
[384515112,1757448645140,-480.0,0.00013972,2]
[384515113,1757448645150,-480.0,0.00013972,2]
[384515114,1757448645161,-151.0,0.00013972,2]
[384515115,1757448645171,-151.0,0.00013972,2]
[384515116,1757448645180,-151.0,0.00013972,2]
[384515117,1757448645190,-151.0,0.00013972,2]
[384515118,1757448645201,-557.6,0.00013972,2]
[384515119,1757448645210,-480.0,0.00013972,2]
[384515120,1757448645219,-534.79,0.00013972,2]
[384515121,1757448645228,-480.0,0.00013972,2]
[384515122,1757448645238,-2529.76,0.00013972,2]
[384515124,1757448645247,-480.0,0.00013972,2]
[384515126,1757448645257,-1325.34,0.00013972,2]
[384515128,1757448645266,-480.0,0.00013972,2]
[384515130,1757448645275,-480.0,0.00013972,2]
[384515132,1757448645285,-480.0,0.00013972,2]
[384515133,1757448645294,-625.4,0.00013972,2]
[384515135,1757448645303,-480.0,0.00013972,2]
[384515137,1757448645313,-480.0,0.00013972,2]
[384515140,1757448645322,-1580.15,0.00013972,2]
[384515142,1757448645332,-5386.26,0.00013972,2]
[384515144,1757448645341,-601.49,0.00013972,2]
[384515146,1757448645350,-480.0,0.00013972,2]
[384515148,1757448645360,-480.0,0.00013972,2]
[384515150,1757448645369,-480.0,0.00013972,2]
[384515152,1757448645378,-480.0,0.00013972,2]
[384515154,1757448645387,-729.92,0.00013972,2]
[384515156,1757448645397,-188.777586,0.00013972,2]
[384515158,1757448645405,-480.0,0.00013972,2]
[384515160,1757448645415,-1317.06,0.00013972,2]
[384515162,1757448645426,-2409.72,0.00013972,2]
[384515163,1757448645435,-163.151285,0.00013972,2]
[384515166,1757448645445,-741.56,0.00013972,2]
[384515168,1757448645454,-480.0,0.00013972,2]
[384515169,1757448645463,-480.0,0.00013972,2]
[384515172,1757448645472,-1043.82,0.00013972,2]
[384515174,1757448645482,-3463.14,0.00013972,2]
[384515176,1757448645491,-480.0,0.00013972,2]
[384515177,1757448645501,-401.392518,0.00013972,2]
[384515179,1757448645510,-401.392518,0.00013972,2]
[384515182,1757448645519,-644.34,0.00013972,2]
[384515184,1757448645529,-151.0,0.00013972,2]
[384515186,1757448645538,-401.392518,0.00013972,2]
[384515188,1757448645548,-401.392518,0.00013972,2]
[384515190,1757448645557,-2320.27,0.00013972,2]
[384515192,1757448645567,-1065.39,0.00013972,2]
[384515194,1757448645576,-401.392518,0.00013972,2]
[384515195,1757448645585,-401.392518,0.00013972,2]
[384515197,1757448645594,-401.392518,0.00013972,2]
[384515199,1757448645604,-401.392518,0.00013972,2]
[384515201,1757448645613,-722.49,0.00013972,2]
[384515203,1757448645622,-151.0,0.00013972,2]
[384515205,1757448645632,-151.0,0.00013972,2]
[384515207,1757448645641,-682.5,0.00013972,2]
[384515209,1757448645652,-151.0,0.00013972,2]
[384515212,1757448645662,-271.666405,0.00013972,2]
[384515214,1757448645674,-480.0,0.00013972,2]
[384515216,1757448645684,-699.17,0.00013972,2]
[384515218,1757448645693,-469.3,0.00013972,2]
[384515220,1757448645703,-480.0,0.00013972,2]
[384515222,1757448645712,-876.83,0.00013972,2]
[384515224,1757448645721,-480.0,0.00013972,2]
[384515226,1757448645731,-496.36558375,0.00013972,2]
[384515228,1757448645741,-782.37,0.00013972,2]
[384515230,1757448645750,-480.0,0.00013972,2]
[384515232,1757448645759,-151.0,0.00013972,2]
[384515235,1757448645770,-151.0,0.00013972,2]
[384515238,1757448645779,-151.0,0.00013972,2]
[384515240,1757448645788,-1994.74,0.00013972,2]
[384515242,1757448645798,-151.0,0.00013972,2]
[384515244,1757448645807,-220.894635,0.00013972,2]
[384515246,1757448645816,-480.0,0.00013972,2]
[384515248,1757448645825,-832.33,0.00013972,2]
[384515250,1757448645834,-321.108079,0.00013972,2]
[384515251,1757448645843,-321.108079,0.00013972,2]
[384515253,1757448645852,-480.0,0.00013972,2]
[384515255,1757448645862,-480.0,0.00013972,2]
[384515257,1757448645871,-502.64486148,0.00013973,2]
[384515259,1757448645881,-500.0,0.00013973,2]
[384515261,1757448645890,-500.0,0.00013973,2]
[384515263,1757448645900,-500.0,0.00013973,2]
[384515265,1757448645909,-500.0,0.00013973,2]
[384515267,1757448645919,-500.0,0.00013973,2]
[384515269,1757448645928,-500.0,0.00013973,2]
[384515272,1757448645937,-500.0,0.00013973,2]
[384515274,1757448645947,-500.0,0.00013973,2]
[384515276,1757448645956,-630.4182491,0.00013973,2]
[384515277,1757448645965,-500.0,0.00013973,2]
[384515279,1757448645974,-500.0,0.00013973,2]
[384515281,1757448645983,-500.0,0.00013973,2]
[384515283,1757448645992,-500.0,0.00013973,2]
[384515285,1757448646001,-500.0,0.00013973,2]
[384515287,1757448646010,-500.0,0.00013973,2]
[384515289,1757448646019,-503.70918573,0.00013973,2]
[384515291,1757448646028,-500.0,0.00013973,2]
[384515293,1757448646037,-500.0,0.00013973,2]
[384515295,1757448646048,-500.0,0.00013973,2]
[384515298,1757448646057,-572.61979282,0.00013973,2]
[384515300,1757448646066,-151.0,0.00013973,2]
[384515302,1757448646076,-321.108079,0.00013973,2]
[384515303,1757448646085,-203.55,0.00013979,2]
[384515305,1757448646094,-54137.37841253,0.0001399,2]
[384515307,1757448646103,-151.0,0.0001399,2]
[384515310,1757448646113,-151.0,0.0001399,2]
[384515312,1757448646122,-151.0,0.0001399,2]
[384515314,1757448646131,-271.712032,0.0001399,2]
[384515316,1757448646140,-151.0,0.0001399,2]
[384515318,1757448646149,-151.0,0.0001399,2]
[384515320,1757448646158,-151.0,0.0001399,2]
[384515321,1757448646166,-151.0,0.0001399,2]
[384515324,1757448646176,-335.244813,0.0001399,2]
[384515326,1757448646185,-335.244813,0.0001399,2]
[384515328,1757448646194,-335.244813,0.0001399,2]
[384515330,1757448646203,-335.244809,0.0001399,2]
[384515331,1757448646212,-151.0,0.0001399,2]
[384515333,1757448646221,-151.0,0.0001399,2]
[384515335,1757448646230,-151.0,0.0001399,2]
[384515337,1757448646239,-401.392518,0.0001399,2]
[384515339,1757448646249,-401.392518,0.0001399,2]
[384515341,1757448646258,-401.392518,0.0001399,2]
[384515343,1757448646267,-401.392512,0.0001399,2]
[384515345,1757448646276,-151.0,0.0001399,2]
[384515347,1757448646286,-203.55,0.00013993,2]
[384515350,1757448646295,-151.0,0.00014,2]
[384515352,1757448646304,-203.55,0.00014007,2]
[384515354,1757448646313,-2524.82941417,0.0001402,2]
[384515356,1757448646322,-3000.0,0.0001404,2]
[384515358,1757448646331,-500.0,0.00014048,2]
[384515360,1757448646340,-150.0,0.00014065,2]
[384515362,1757448646350,-2618.2481025,0.00014075,2]
[384515364,1757448646359,-976.0,0.00014093,2]
[384515366,1757448646368,-634.0,0.00014093,2]
[384515368,1757448646377,-2154.0,0.00014093,2]
[384515370,1757448646386,-150.0,0.00014093,2]
[384515373,1757448646396,-150.0,0.00014093,2]
[384515375,1757448646405,-150.0,0.00014093,2]
[384515377,1757448646415,-150.0,0.00014093,2]
[384515379,1757448646424,-151.0,0.00014093,2]
[384515381,1757448646433,-151.0,0.00014093,2]
[384515382,1757448646442,-151.0,0.00014093,2]
[384515384,1757448646451,-151.0,0.00014093,2]
[384515385,1757448646460,-151.0,0.000141,2]
[384515387,1757448646469,-2715.12328229,0.0001413,2]
[384515389,1757448646479,-2815.58284374,0.00014185,2]
[384515390,1757448646487,-161.6618188,0.000142,2]
[384515392,1757448646497,-295.5430699,0.000142,2]
[384515393,1757448646505,-272.294,0.000142,2]
[384515395,1757448646515,-151.0,0.000142,2]
[384515397,1757448646524,-306.0,0.00014231,2]
[384515398,1757448646533,-2919.75940895,0.0001424,2]
[384515400,1757448646543,-480.0,0.00014246,2]
[384515402,1757448646552,-480.0,0.00014246,2]
[384515403,1757448646562,-480.0,0.00014246,2]
[384515405,1757448646571,-480.0,0.00014246,2]
[384515406,1757448646580,-480.0,0.00014246,2]
[384515408,1757448646590,-480.0,0.00014246,2]
[384515410,1757448646599,-480.0,0.00014246,2]
[384515411,1757448646609,-589.73,0.00014246,2]
[384515414,1757448646617,-560.34,0.00014246,2]
[384515416,1757448646627,-480.0,0.00014246,2]
[384515419,1757448646636,-480.0,0.00014246,2]
[384515422,1757448646645,-480.0,0.00014246,2]
[384515424,1757448646654,-480.0,0.00014246,2]
[384515427,1757448646664,-490.87,0.00014246,2]
[384515428,1757448646674,-480.0,0.00014246,2]
[384515430,1757448646683,-480.0,0.00014246,2]
[384515432,1757448646692,-638.57,0.00014246,2]
[384515433,1757448646702,-676.04,0.00014246,2]
[384515435,1757448646710,-480.0,0.00014246,2]
[384515437,1757448646719,-151.0,0.00014246,2]
[384515438,1757448646728,-480.0,0.00014246,2]
[384515440,1757448646737,-746.4,0.00014246,2]
[384515442,1757448646746,-620.39,0.00014246,2]
[384515444,1757448646755,-613.34,0.00014246,2]
[384515445,1757448646764,-151.0,0.00014246,2]
[384515447,1757448646773,-480.0,0.00014246,2]
[384515449,1757448646782,-480.0,0.00014246,2]
[384515450,1757448646791,-954.71,0.00014246,2]
[384515452,1757448646800,-480.0,0.00014246,2]
[384515454,1757448646810,-151.0,0.00014246,2]
[384515455,1757448646819,-151.0,0.00014246,2]
[384515457,1757448646828,-480.0,0.00014246,2]
[384515459,1757448646837,-576.55,0.00014246,2]
[384515461,1757448646847,-480.0,0.00014246,2]
[384515462,1757448646856,-480.0,0.00014246,2]
[384515464,1757448646866,-510.33,0.00014246,2]
[384515466,1757448646875,-2503.08,0.00014246,2]
[384515467,1757448646884,-480.0,0.00014246,2]
[384515469,1757448646894,-518.77,0.00014246,2]
[384515471,1757448646903,-516.69,0.00014246,2]
[384515473,1757448646912,-480.0,0.00014246,2]
[384515474,1757448646921,-22357.95,0.00014246,2]
[384515476,1757448646931,-480.0,0.00014246,2]
[384515478,1757448646940,-1152.01,0.00014246,2]
[384515479,1757448646949,-557.21,0.00014246,2]
[384515481,1757448646959,-480.0,0.00014246,2]
[384515483,1757448646968,-1573.14,0.00014246,2]
[384515484,1757448646978,-480.0,0.00014246,2]
[384515486,1757448646988,-500.3,0.00014246,2]
[384515488,1757448646998,-480.0,0.00014246,2]
[384515490,1757448647006,-985.1,0.00014246,2]
[384515491,1757448647015,-480.0,0.00014246,2]
[384515493,1757448647024,-480.0,0.00014246,2]
[384515495,1757448647034,-480.0,0.00014246,2]
[384515497,1757448647043,-480.0,0.00014246,2]
[384515498,1757448647053,-480.0,0.00014246,2]
[384515500,1757448647062,-660.09,0.00014246,2]
[384515502,1757448647072,-480.0,0.00014246,2]
[384515503,1757448647081,-3876.29,0.00014246,2]
[384515505,1757448647090,-480.0,0.00014246,2]
[384515507,1757448647099,-480.0,0.00014246,2]
[384515508,1757448647109,-480.0,0.00014246,2]
[384515510,1757448647118,-480.0,0.00014246,2]
[384515512,1757448647127,-480.0,0.00014246,2]
[384515513,1757448647136,-3041.54,0.00014246,2]
[384515515,1757448647146,-1841.66,0.00014246,2]
[384515517,1757448647155,-480.0,0.00014246,2]
[384515519,1757448647164,-480.0,0.00014246,2]
[384515520,1757448647173,-480.0,0.00014246,2]
[384515522,1757448647183,-480.0,0.00014246,2]
[384515524,1757448647192,-480.0,0.00014246,2]
[384515526,1757448647203,-1077.09,0.00014246,2]
[384515527,1757448647212,-2598.11,0.00014246,2]
[384515529,1757448647221,-972.26,0.00014246,2]
[384515531,1757448647230,-732.93,0.00014246,2]
[384515532,1757448647239,-480.0,0.00014246,2]
[384515534,1757448647250,-480.0,0.00014246,2]
[384515536,1757448647261,-765.84,0.00014246,2]
[384515537,1757448647270,-931.58,0.00014246,2]
[384515539,1757448647279,-1009.24,0.00014246,2]
[384515541,1757448647289,-480.0,0.00014246,2]
[384515543,1757448647298,-480.0,0.00014246,2]
[384515544,1757448647307,-485.88,0.00014246,2]
[384515546,1757448647316,-1432.45,0.00014246,2]
[384515548,1757448647325,-761.17,0.00014246,2]
[384515549,1757448647334,-480.0,0.00014246,2]
[384515551,1757448647343,-480.0,0.00014246,2]
[384515553,1757448647353,-480.0,0.00014246,2]
[384515554,1757448647363,-1808.68,0.00014246,2]
[384515556,1757448647373,-9732.68,0.00014246,2]
[384515558,1757448647382,-2826.09,0.00014246,2]
[384515559,1757448647392,-480.0,0.00014246,2]